bitfinex-derivatives/quotes_BTCF0:USTF0_20250114
["timestamp","ask_amount","ask_price","bid_price","bid_amount"]
[1736814277851,0.052738,94840.0,94839.0,1.8608]
[1736814278053,0.052738,94840.0,94839.0,1.5]
[1736814278257,0.052747,94825.0,94818.0,0.3608]
[1736814278858,0.052747,94825.0,94824.0,1.8608]
[1736814279459,0.052747,94825.0,94824.0,1.8668]
[1736814280855,0.052747,94825.0,94824.0,1.8688]
[1736814281262,0.052747,94825.0,94824.0,1.921547]
[1736814281456,0.052747,94825.0,94824.0,1.8688]
[1736814281951,0.052747,94825.0,94824.0,1.921547]
[1736814286268,0.052747,94825.0,94824.0,1.8688]
[1736814287372,0.052747,94825.0,94824.0,1.921547]
[1736814288366,0.052747,94825.0,94824.0,1.8688]
[1736814290461,0.052756,94809.0,94808.0,0.0796]
[1736814290860,0.052756,94809.0,94808.0,1.5796]
[1736814291257,0.052756,94809.0,94808.0,1.632356]
[1736814291569,0.052753,94814.0,94813.0,0.052752]
[1736814292465,0.00721889,94828.0,94813.0,0.413552]
[1736814292669,0.052746,94826.0,94825.0,0.3608]
[1736814293261,0.052746,94826.0,94825.0,1.8608]
[1736814294064,0.054746,94826.0,94825.0,1.8608]
[1736814294674,0.055746,94826.0,94825.0,1.8608]
[1736814297972,0.055746,94826.0,94825.0,1.913547]
[1736814300469,0.055746,94826.0,94825.0,1.8608]
[1736814300870,0.055746,94826.0,94813.0,0.3608]
[1736814300871,0.052753,94814.0,94813.0,0.3608]
[1736814301173,0.052756,94809.0,94808.0,0.0796]
[1736814301370,0.052756,94809.0,94808.0,1.5796]
[1736814302874,0.052756,94809.0,94808.0,1.5856]
[1736814303075,0.052756,94809.0,94808.0,1.506]
[1736814304371,0.053756,94809.0,94808.0,1.506]
[1736814304973,0.053756,94809.0,94808.0,0.006]
[1736814305175,0.05276,94801.0,94793.0,0.3608]
[1736814305379,0.05276,94801.0,94800.0,1.6]
[1736814305975,0.052759,94806.0,94805.0,0.052757]
[1736814306180,0.052744,94830.0,94805.0,0.3608]
[1736814306378,0.052749,94821.0,94820.0,0.052749]
[1736814306580,0.052749,94821.0,94820.0,1.552749]
[1736814307175,0.052747,94826.0,94825.0,0.052746]
[1736814308981,0.001,94826.0,94825.0,0.052746]
[1736814309480,0.052745,94829.0,94828.0,0.052745]
[1736814309787,0.052745,94829.0,94828.0,0.413545]
[1736814311379,0.053745,94829.0,94828.0,0.413545]
[1736814311574,0.056745,94829.0,94828.0,0.413545]
[1736814314084,0.053745,94829.0,94828.0,0.413545]
[1736814314386,0.003,94829.0,94828.0,0.413545]
[1736814317890,0.077,94839.0,94828.0,0.413545]
[1736814318081,0.00056001,94840.0,94839.0,0.052739]
[1736814318287,0.00802882,94849.0,94848.0,0.052734]
[1736814318488,0.00802882,94849.0,94848.0,0.413534]
[1736814318688,0.075,94859.0,94848.0,1.8608]
[1736814318990,0.052728,94859.0,94858.0,0.413528]
[1736814319688,0.052728,94859.0,94858.0,1.913528]
[1736814320186,0.053728,94859.0,94858.0,1.913528]
[1736814320589,0.053728,94859.0,94858.0,1.8608]
[1736814320789,0.053728,94859.0,94858.0,1.5]
[1736814320984,0.053728,94859.0,94858.0,1.8608]
[1736814321186,0.053728,94859.0,94858.0,1.8618]
[1736814321187,0.057728,94859.0,94858.0,1.8618]
[1736814321698,0.005,94859.0,94858.0,1.914528]
[1736814322388,0.057728,94859.0,94858.0,1.914528]
[1736814323792,0.057728,94859.0,94858.0,0.3618]
[1736814325182,0.056728,94859.0,94858.0,0.413528]
[1736814325687,0.057728,94859.0,94858.0,0.3608]
[1736814326697,0.056728,94859.0,94858.0,0.3608]
[1736814326992,0.057728,94859.0,94858.0,0.3608]
[1736814327293,0.053728,94859.0,94858.0,0.3608]
[1736814327491,0.056728,94859.0,94858.0,0.3608]
[1736814328189,0.057728,94859.0,94858.0,0.3608]
[1736814329094,0.056728,94859.0,94858.0,0.3608]
[1736814329394,0.057728,94859.0,94858.0,0.3608]
[1736814330592,0.057728,94859.0,94858.0,1.8608]
[1736814331189,0.056728,94859.0,94858.0,1.8608]
[1736814331390,0.057728,94859.0,94858.0,1.8608]
[1736814331895,0.057728,94859.0,94839.0,0.3608]
[1736814331896,0.052738,94840.0,94839.0,0.3608]
[1736814332397,0.052738,94840.0,94839.0,1.8608]
[1736814332597,0.052738,94840.0,94822.0,0.3608]
[1736814332891,0.05274,94837.0,94822.0,0.3608]
[1736814333096,0.05274,94837.0,94836.0,1.50158161]
[1736814333496,0.052748,94823.0,94822.0,0.3608]
[1736814333692,0.413544,94830.0,94804.0,0.3608]
[1736814333898,0.10689416,94816.0,94804.0,0.3608]
[1736814334196,0.08,94815.0,94804.0,0.3608]
[1736814334398,0.08,94815.0,94806.0,0.052757]
[1736814335091,0.08,94815.0,94808.0,0.052756]
[1736814335294,0.08,94815.0,94805.0,1.50136]
[1736814335499,0.08,94815.0,94805.0,1.5]
[1736814336799,0.081,94815.0,94806.0,0.009]
[1736814337198,0.081,94815.0,94806.0,0.002]
[1736814337392,0.081,94815.0,94805.0,1.51236]
[1736814337593,0.081,94815.0,94805.0,1.511]
[1736814337793,0.001,94814.0,94805.0,0.011]
[1736814338293,0.001,94814.0,94806.0,1.51]
[1736814339797,0.001,94814.0,94806.0,1.5]
[1736814340003,0.002,94814.0,94806.0,1.5]
[1736814340489,0.002,94814.0,94806.0,1.507]
[1736814340690,0.3608,94813.0,94781.0,0.3608]
[1736814340894,0.10689416,94791.0,94781.0,0.3608]
[1736814341197,0.1616,94790.0,94781.0,0.3608]
[1736814341795,0.1616,94790.0,94782.0,1.5]
[1736814341998,0.001,94789.0,94782.0,1.5]
[1736814342495,0.001,94789.0,94778.0,0.00158225]
[1736814343002,0.3608,94785.0,94779.0,1.5]
[1736814343403,0.3608,94785.0,94778.0,0.00158225]
[1736814343404,0.001,94784.0,94778.0,0.00158225]
[1736814343603,0.001,94784.0,94771.0,0.3608]
[1736814343807,0.3608,94776.0,94762.0,0.3608]
[1736814343994,0.21378832,94772.0,94763.0,1.5]
[1736814344398,0.001,94771.0,94763.0,1.5]
[1736814346795,0.001,94771.0,94763.0,1.512]
[1736814347598,0.004,94771.0,94763.0,1.5]
[1736814353803,0.004,94771.0,94761.0,0.3608]
[1736814354802,0.3608,94763.0,94751.0,1.50136]
[1736814354998,0.10689416,94761.0,94751.0,1.5]
[1736814355207,0.0837,94760.0,94751.0,1.5]
[1736814355508,0.0847,94760.0,94751.0,1.5]
[1736814356604,0.001,94760.0,94751.0,1.5]
[1736814356912,0.008,94760.0,94751.0,1.501]
[1736814357304,0.001,94760.0,94751.0,1.5]
[1736814357601,0.008,94760.0,94751.0,1.501]
[1736814357801,0.008,94760.0,94755.0,0.3608]
[1736814358214,0.007,94760.0,94755.0,0.3608]
[1736814358403,0.007,94760.0,94756.0,0.0832]
[1736814358599,0.007,94760.0,94756.0,0.1621]
[1736814359207,0.007,94760.0,94756.0,0.0832]
[1736814359412,0.007,94760.0,94755.0,0.3608]
[1736814359413,0.001,94759.0,94755.0,0.3608]
[1736814359810,0.001,94759.0,94751.0,1.5024]
[1736814360014,0.001,94759.0,94751.0,1.501]
[1736814361003,0.003,94759.0,94751.0,1.501]
[1736814361518,0.01,94759.0,94755.0,0.001]
[1736814362016,0.008,94759.0,94751.0,1.50236]
[1736814362220,0.008,94759.0,94751.0,1.501]
[1736814362617,0.009,94759.0,94751.0,1.501]
[1736814363208,0.009,94759.0,94754.0,0.3608]
[1736814363416,0.003,94759.0,94754.0,0.3608]
[1736814363609,0.01,94759.0,94755.0,0.001]
[1736814364009,0.003,94759.0,94754.0,0.3608]
[1736814364210,0.008,94759.0,94754.0,0.3608]
[1736814364721,0.01,94759.0,94755.0,0.001]
[1736814365617,0.011,94759.0,94755.0,0.001]
[1736814366119,0.011,94759.0,94736.0,0.3608]
[1736814366325,0.46769416,94753.0,94736.0,0.3608]
[1736814366513,0.3608,94745.0,94736.0,0.3608]
[1736814366709,0.3608,94745.0,94727.0,0.3608]
[1736814366710,0.3608,94737.0,94727.0,0.3608]
[1736814366915,0.46769416,94737.0,94727.0,0.3608]
[1736814367117,0.001,94736.0,94727.0,0.3608]
[1736814367816,0.10689416,94740.0,94735.0,0.3608]
[1736814368122,0.001,94739.0,94735.0,0.3608]
[1736814368812,0.052796,94736.0,94735.0,0.3608]
[1736814369613,0.053796,94736.0,94735.0,0.3608]
[1736814370223,0.053796,94736.0,94735.0,0.413597]
[1736814370415,0.00899435,94749.0,94738.0,0.052795]
[1736814370617,0.57406901,94750.0,94738.0,0.052795]
[1736814370923,0.68036316,94750.0,94739.0,1.5]
[1736814371217,0.62757416,94750.0,94739.0,1.5]
[1736814372519,0.001,94749.0,94739.0,1.5]
[1736814372720,0.3608,94747.0,94739.0,1.5]
[1736814373224,0.001,94746.0,94739.0,1.5]
[1736814373721,0.001,94746.0,94735.0,0.3608]
[1736814374120,0.001,94746.0,94736.0,1.5]
[1736814374724,0.001,94746.0,94725.0,0.3608]
[1736814374924,0.10689416,94735.0,94725.0,0.3608]
[1736814375521,0.16069069,94740.0,94726.0,1.5]
[1736814375721,0.16069069,94740.0,94735.0,0.001]
[1736814375926,0.001,94739.0,94735.0,0.001]
[1736814376124,0.001,94739.0,94735.0,0.003]
[1736814376620,0.001,94739.0,94735.0,0.001]
[1736814377323,0.008,94739.0,94735.0,0.002]
[1736814377631,0.008,94739.0,94735.0,0.001]
[1736814378624,0.011,94739.0,94735.0,0.001]
[1736814379427,0.3608,94738.0,94735.0,0.001]
[1736814379631,0.5198,94738.0,94735.0,0.001]
[1736814379828,0.001,94737.0,94735.0,0.001]
[1736814380431,0.01,94739.0,94735.0,0.3618]
[1736814380432,0.01891044,94739.0,94735.0,0.3618]
[1736814380633,0.003,94738.0,94735.0,0.3618]
[1736814380820,0.003,94738.0,94726.0,1.8618]
[1736814381021,0.007,94737.0,94735.0,0.001]
[1736814381529,0.001,94736.0,94735.0,0.001]
[1736814381734,0.1643,94736.0,94726.0,0.3608]
[1736814382026,0.01,94737.0,94726.0,0.3608]
[1736814382228,0.01,94737.0,94727.0,1.5]
[1736814382425,0.003,94737.0,94727.0,1.5]
[1736814382627,0.003,94737.0,94735.0,0.001]
[1736814383135,0.003,94736.0,94728.0,1.5]
[1736814383629,0.003,94737.0,94728.0,1.5]
[1736814383835,0.003,94736.0,94728.0,1.5]
[1736814384635,0.001,94736.0,94728.0,1.5]
[1736814385331,0.005,94736.0,94728.0,1.5]
[1736814386344,0.001,94736.0,94728.0,1.5]
[1736814386634,0.004,94736.0,94728.0,1.5]
[1736814386835,0.004,94736.0,94726.0,0.3608]
[1736814387025,0.0841,94735.0,94726.0,0.3608]
[1736814388632,0.0851,94735.0,94726.0,0.3608]
[1736814389637,0.0881,94735.0,94726.0,0.3608]
[1736814392338,0.004,94735.0,94734.0,0.3608]
[1736814393131,0.004,94735.0,94734.0,1.8608]
[1736814393437,0.006,94735.0,94734.0,1.8608]
[1736814393630,0.003,94735.0,94734.0,1.8608]
[1736814393831,0.003,94735.0,94734.0,1.8618]
[1736814394037,0.004,94735.0,94734.0,0.001]
[1736814394238,0.002,94735.0,94734.0,0.001]
[1736814395333,0.005,94735.0,94727.0,1.50096]
[1736814395536,0.005,94735.0,94727.0,1.5]
[1736814395932,0.008,94735.0,94734.0,0.001]
[1736814396837,0.01,94735.0,94734.0,0.001]
[1736814397032,0.007,94735.0,94726.0,1.8608]
[1736814398144,0.005,94735.0,94726.0,1.8608]
[1736814398344,0.005,94735.0,94734.0,0.3608]
[1736814398845,0.008,94735.0,94734.0,0.3618]
[1736814399238,0.001,94735.0,94734.0,0.3608]
[1736814399543,0.004,94735.0,94734.0,0.3608]
[1736814399949,0.008,94735.0,94734.0,0.414597]
[1736814400140,0.01,94735.0,94734.0,0.414597]
[1736814400746,0.01,94735.0,94734.0,0.3618]
[1736814402649,0.01,94735.0,94734.0,0.001]
[1736814405145,0.011,94735.0,94726.0,0.3608]
[1736814405339,0.0833,94734.0,94726.0,0.3608]
[1736814405746,0.3608,94731.0,94720.0,0.0803]
[1736814405955,0.19091295,94730.0,94720.0,0.0803]
[1736814406152,0.19191295,94730.0,94720.0,0.0803]
[1736814407250,0.52076,94729.0,94720.0,0.0803]
[1736814407647,0.001,94728.0,94720.0,0.0803]
[1736814408755,0.002,94728.0,94720.0,0.0803]
[1736814409249,0.002,94728.0,94700.0,0.1]
[1736814409549,0.3608,94723.0,94715.0,0.0015836]
[1736814409754,0.3608,94721.0,94715.0,0.0015836]
[1736814409956,0.3608,94721.0,94700.0,0.1]
[1736814410254,0.2142259,94710.0,94700.0,0.1]
[1736814410448,0.1628,94709.0,94700.0,0.1]
[1736814410648,0.1638,94709.0,94700.0,0.1]
[1736814411658,0.11367562,94708.0,94700.0,0.1]
[1736814412051,0.001,94707.0,94700.0,0.1]
[1736814412650,0.11367562,94708.0,94700.0,0.1]
[1736814412853,0.001,94710.0,94709.0,0.052811]
[1736814413041,0.5208,94727.0,94719.0,0.052806]
[1736814413243,0.5208,94727.0,94723.0,0.052803]
[1736814413455,0.10711295,94740.0,94726.0,1.5]
[1736814413752,0.11624883,94740.0,94736.0,0.3608]
[1736814413955,0.00913588,94740.0,94736.0,0.3608]
[1736814414154,0.10711295,94746.0,94736.0,0.3608]
[1736814414959,0.008,94740.0,94736.0,0.3618]
[1736814415348,0.008,94740.0,94736.0,0.3608]
[1736814415547,0.2427,94745.0,94736.0,0.3618]
[1736814415855,0.001,94740.0,94736.0,0.3618]
[1736814416648,0.2447,94745.0,94736.0,0.3618]
[1736814417456,0.002,94740.0,94736.0,0.3618]
[1736814417655,0.009,94740.0,94736.0,0.3618]
[1736814418247,0.002,94740.0,94736.0,0.3618]
[1736814418449,0.001,94739.0,94736.0,0.3618]
[1736814419165,0.3608,94737.0,94736.0,0.001]
[1736814419550,0.6618,94737.0,94712.0,0.3608]
[1736814419746,0.6618,94737.0,94709.0,0.3608]
[1736814419747,0.2142259,94722.0,94709.0,0.3608]
[1736814420059,0.3608,94716.0,94701.0,0.3608]
[1736814420359,0.2142259,94711.0,94701.0,0.3608]
[1736814420853,0.3608,94705.0,94700.0,0.1]
[1736814421354,0.001,94704.0,94700.0,0.1]
[1736814422261,0.001,94704.0,94701.0,0.003]
[1736814423046,0.001,94704.0,94700.0,0.101]
[1736814423359,0.004,94704.0,94700.0,0.101]
[1736814423955,0.004,94704.0,94700.0,0.1]
[1736814424156,0.012,94704.0,94700.0,0.06465808]
[1736814424658,0.004,94704.0,94700.0,0.06465808]
[1736814424856,0.013,94704.0,94700.0,0.06465808]
[1736814426055,0.014,94704.0,94700.0,0.06465808]
[1736814426657,0.3748,94704.0,94700.0,0.06465808]
[1736814430161,0.3748,94704.0,94701.0,1.5]
[1736814430359,0.014,94704.0,94701.0,1.5]
[1736814432559,0.014,94704.0,94700.0,0.06465808]
[1736814433269,0.10711295,94711.0,94701.0,0.0796]
[1736814433465,0.008,94704.0,94701.0,0.0796]
[1736814433968,0.008,94704.0,94701.0,0.132416]
[1736814434165,0.006,94704.0,94701.0,0.132416]
[1736814434358,0.00950942,94725.0,94703.0,0.3608]
[1736814434565,0.52092,94738.0,94724.0,0.3608]
[1736814434757,0.52092,94738.0,94735.0,0.3608]
[1736814434960,0.53058569,94738.0,94735.0,0.3608]
[1736814435471,0.52092,94738.0,94735.0,0.3608]
[1736814435967,0.52092,94738.0,94725.0,0.1593]
[1736814436373,0.001,94737.0,94725.0,0.1593]
[1736814436869,0.001,94737.0,94735.0,0.009]
[1736814437472,0.001,94737.0,94735.0,0.017]
[1736814437772,0.3608,94736.0,94735.0,0.017]
[1736814437966,0.006,94737.0,94735.0,0.009]
[1736814438165,0.001,94736.0,94735.0,0.009]
[1736814438366,0.005,94737.0,94726.0,1.5]
[1736814439371,0.002,94736.0,94725.0,0.0796]
[1736814439969,0.007,94737.0,94735.0,0.001]
[1736814440673,0.001,94736.0,94725.0,0.0796]
[1736814441367,0.007,94737.0,94735.0,0.001]
[1736814441964,0.001,94736.0,94735.0,0.001]
[1736814443170,0.002,94736.0,94725.0,0.0796]
[1736814443770,0.008,94736.0,94735.0,0.001]
[1736814444276,0.001,94736.0,94725.0,0.0796]
[1736814444576,0.002,94736.0,94725.0,0.0796]
[1736814445275,0.005,94736.0,94732.0,0.3608]
[1736814445480,0.004,94736.0,94732.0,0.3608]
[1736814445977,0.007,94736.0,94735.0,0.001]
[1736814447372,0.004,94736.0,94732.0,0.3608]
[1736814447778,0.006,94736.0,94732.0,0.3608]
[1736814450313,0.008,94736.0,94735.0,0.001]
[1736814450698,0.009,94736.0,94735.0,0.001]
[1736814450897,0.009,94736.0,94714.0,0.3608]
[1736814451091,0.10711295,94724.0,94708.0,0.0831]
[1736814451296,0.10711295,94718.0,94708.0,0.0831]
[1736814452106,0.10711295,94718.0,94714.0,0.001]
[1736814452309,0.10711295,94724.0,94714.0,0.001]
[1736814452696,0.001,94723.0,94714.0,0.001]
[1736814454002,0.001,94723.0,94708.0,0.0841]
[1736814454204,0.001,94723.0,94708.0,0.0891]
[1736814454403,0.10711295,94718.0,94708.0,0.0891]
[1736814454803,0.10711295,94718.0,94708.0,0.0841]
[1736814455305,0.10711295,94718.0,94708.0,0.0851]
[1736814456778,0.001,94717.0,94708.0,0.002]
[1736814457278,0.001,94717.0,94708.0,0.003]
[1736814461787,0.10711295,94718.0,94708.0,0.003]
[1736814462184,0.00977958,94723.0,94713.0,0.3608]
[1736814462386,0.36136001,94738.0,94722.0,0.3608]
[1736814462387,0.10711295,94730.0,94722.0,0.3608]
[1736814462581,0.52088,94737.0,94722.0,0.3608]
[1736814462582,0.52144001,94737.0,94722.0,0.3608]
[1736814462781,0.52088,94737.0,94730.0,0.3608]
[1736814463089,0.53082523,94737.0,94730.0,0.3608]
[1736814463475,0.0788,94736.0,94723.0,1.50096]
[1736814463675,0.0788,94736.0,94723.0,1.5]
[1736814463676,0.3608,94730.0,94723.0,1.5]
[1736814463986,0.10711295,94733.0,94723.0,1.5]
[1736814464383,0.001,94732.0,94723.0,1.5]
[1736814464583,0.001,94732.0,94723.0,1.501]
[1736814464988,0.10711295,94733.0,94723.0,1.501]
[1736814465189,0.11211295,94733.0,94723.0,1.501]
[1736814465484,0.11311295,94733.0,94723.0,1.501]
[1736814466686,0.11311295,94733.0,94723.0,1.5]
[1736814466991,0.003,94732.0,94723.0,1.5]
[1736814467487,0.11311295,94733.0,94723.0,1.501]
[1736814467682,0.11311295,94733.0,94728.0,0.3608]
[1736814467887,0.007,94733.0,94728.0,0.3608]
[1736814468887,0.002,94733.0,94728.0,0.3608]
[1736814469083,0.003,94732.0,94728.0,0.3608]
[1736814470491,0.003,94733.0,94728.0,0.3608]
[1736814470792,0.001,94732.0,94728.0,0.3608]
[1736814471188,0.004,94732.0,94728.0,0.3608]
[1736814471688,0.004,94733.0,94728.0,0.3608]
[1736814473687,0.001,94732.0,94728.0,0.3608]
[1736814473888,0.004,94732.0,94728.0,0.3608]
[1736814474089,0.10711295,94760.0,94728.0,0.3608]
[1736814474293,0.10711295,94760.0,94746.0,0.3608]
[1736814474694,0.10711295,94760.0,94747.0,1.5]
[1736814475296,0.11778086,94760.0,94747.0,1.5]
[1736814475800,0.12678086,94760.0,94747.0,1.5]
[1736814476596,0.001,94759.0,94746.0,0.3618]
[1736814477200,0.001,94759.0,94747.0,0.001]
[1736814477794,0.012,94759.0,94746.0,0.3618]
[1736814478304,0.003,94759.0,94746.0,0.3608]
[1736814479295,0.003,94759.0,94737.0,0.052796]
[1736814479500,0.10711295,94750.0,94747.0,0.3608]
[1736814479695,0.10711295,94757.0,94747.0,0.3608]
[1736814480798,0.001,94756.0,94747.0,0.3608]
[1736814481301,0.001,94756.0,94747.0,0.3618]
[1736814481894,0.01,94756.0,94747.0,0.3618]
[1736814482305,0.3608,94750.0,94747.0,0.001]
[1736814482598,0.0822,94749.0,94747.0,0.001]
[1736814483803,0.0852,94749.0,94747.0,0.001]
[1736814484502,0.0942,94749.0,94747.0,0.001]
[1736814485301,0.001,94748.0,94747.0,0.001]
[1736814485500,0.001,94748.0,94732.0,1.5]
[1736814485501,0.0812,94748.0,94732.0,1.5]
[1736814485700,0.10711295,94742.0,94732.0,1.5]
[1736814486205,0.3608,94741.0,94732.0,1.5]
[1736814487709,0.3628,94741.0,94732.0,1.5]
[1736814487907,0.3668,94741.0,94732.0,1.5]
[1736814490195,0.3668,94741.0,94734.0,0.3608]
[1736814491103,0.006,94741.0,94735.0,0.052797]
[1736814491407,0.007,94741.0,94735.0,0.052797]
[1736814491607,0.007,94741.0,94740.0,1.5]
[1736814493305,0.008,94741.0,94740.0,1.5]
[1736814493607,0.006,94741.0,94740.0,1.5]
[1736814493802,0.003,94741.0,94740.0,1.5]
[1736814494005,0.011,94741.0,94740.0,1.501]
[1736814500410,0.011,94741.0,94740.0,0.001]
[1736814502411,0.011,94741.0,94740.0,0.3618]
[1736814503111,0.011,94741.0,94740.0,0.001]
[1736814503314,0.012,94741.0,94729.0,0.3608]
[1736814503515,0.0844,94740.0,94729.0,0.3608]
[1736814503717,0.3608,94737.0,94729.0,0.3608]
[1736814504111,0.001,94736.0,94729.0,0.3608]
[1736814506717,0.004,94736.0,94729.0,0.3608]
[1736814507320,0.005,94736.0,94729.0,0.3608]
[1736814508319,0.01503253,94736.0,94729.0,0.3608]
[1736814511925,0.01503253,94736.0,94721.0,1.50116]
[1736814512127,0.3608,94730.0,94711.0,0.3608]
[1736814512324,0.10711295,94721.0,94711.0,0.3608]
[1736814512720,0.10711295,94721.0,94712.0,1.5]
[1736814513819,0.10711295,94721.0,94712.0,1.502]
[1736814514021,0.10711295,94721.0,94712.0,1.506]
[1736814514225,0.1643,94729.0,94714.0,0.052808]
[1736814514624,0.10711295,94724.0,94723.0,0.3608]
[1736814514924,0.1643,94729.0,94723.0,0.3608]
[1736814515124,0.0804,94729.0,94723.0,0.3608]
[1736814515326,0.01009963,94729.0,94723.0,0.3608]
[1736814515525,0.10711295,94733.0,94723.0,0.3608]
[1736814515721,0.11365452,94732.0,94723.0,0.3608]
[1736814516524,0.11365452,94732.0,94723.0,0.413603]
[1736814516726,0.10711295,94733.0,94731.0,0.3608]
[1736814516920,0.10711295,94741.0,94731.0,0.3608]
[1736814517122,0.2142259,94741.0,94731.0,0.3608]
[1736814517318,0.001,94740.0,94731.0,0.3608]
[1736814518627,0.001,94740.0,94716.0,0.3608]
[1736814518628,0.3608,94732.0,94716.0,0.3608]
[1736814519127,0.10711295,94726.0,94716.0,0.3608]
[1736814519326,0.2476,94725.0,94716.0,0.3608]
[1736814519632,0.2486,94725.0,94712.0,1.50116]
[1736814519826,0.2486,94725.0,94716.0,0.001]
[1736814520119,0.2486,94725.0,94716.0,0.004]
[1736814520722,0.2486,94725.0,94716.0,0.3638]
[1736814522027,0.25849912,94725.0,94716.0,0.003]
[1736814522228,0.25849912,94725.0,94716.0,0.004]
[1736814526125,0.25849912,94725.0,94722.0,0.3608]
[1736814526327,0.25849912,94725.0,94716.0,0.3648]
[1736814529141,0.25849912,94725.0,94716.0,0.3638]
[1736814530033,0.25849912,94725.0,94716.0,0.3648]
[1736814530937,0.25849912,94725.0,94716.0,0.004]
[1736814532138,0.25849912,94725.0,94719.0,0.3608]
[1736814532771,0.09529912,94725.0,94719.0,0.3608]
[1736814532971,0.00989912,94725.0,94719.0,0.3608]
[1736814533164,0.62795295,94726.0,94719.0,0.3608]
[1736814533358,0.62795295,94726.0,94719.0,0.3618]
[1736814533567,0.62795295,94726.0,94719.0,0.3628]
[1736814535152,0.63783705,94726.0,94719.0,0.3628]
[1736814535653,0.63783705,94726.0,94719.0,0.3618]
[1736814535949,0.63783705,94726.0,94719.0,0.3628]
[1736814538349,0.001,94725.0,94719.0,0.3628]
[1736814539345,0.001,94725.0,94719.0,0.3618]
[1736814539542,0.001,94725.0,94719.0,0.3628]
[1736814540544,0.001,94725.0,94719.0,0.002]
[1736814549754,0.11467066,94725.0,94719.0,0.002]
[1736814553152,0.3608,94720.0,94700.0,0.06465808]
[1736814553355,0.2142259,94713.0,94700.0,0.06465808]
[1736814553556,0.2142259,94713.0,94704.0,1.5]
[1736814553557,0.10711295,94713.0,94704.0,1.5]
[1736814554356,0.10811295,94713.0,94704.0,1.5]
[1736814554957,0.10811295,94713.0,94704.0,1.508]
[1736814556057,0.10811295,94713.0,94704.0,1.511]
[1736814557753,0.10811295,94713.0,94710.0,0.3608]
[1736814558061,0.01123573,94713.0,94704.0,1.511]
[1736814558848,0.001,94712.0,94704.0,1.511]
[1736814559251,0.001,94712.0,94710.0,0.002]
[1736814559451,0.001,94712.0,94704.0,0.008]
[1736814560157,0.001,94712.0,94704.0,0.003]
[1736814560453,0.001,94712.0,94710.0,0.006]
[1736814560663,0.001,94712.0,94704.0,0.003]
[1736814560960,0.3608,94705.0,94704.0,0.011]
[1736814561454,0.3608,94705.0,94704.0,0.004]
[1736814561657,0.3608,94705.0,94704.0,0.001]
[1736814561855,0.3608,94705.0,94704.0,0.002]
[1736814562163,0.3698,94705.0,94704.0,0.002]
[1736814562564,0.3738,94705.0,94704.0,0.001]
[1736814563557,0.3648,94705.0,94700.0,0.06465808]
[1736814563755,0.3738,94705.0,94700.0,0.06465808]
[1736814563956,0.3748,94705.0,94700.0,0.06465808]
[1736814565256,0.3738,94705.0,94700.0,0.06465808]
[1736814574365,0.013,94705.0,94700.0,0.06465808]
[1736814576169,0.52096,94704.0,94700.0,0.06465808]
[1736814577256,0.52896,94704.0,94700.0,0.06465808]
[1736814577463,0.53196,94704.0,94700.0,0.06465808]
[1736814578066,0.52896,94704.0,94700.0,0.06465808]
[1736814578265,0.53096,94704.0,94700.0,0.06465808]
[1736814578875,0.52896,94704.0,94700.0,0.06465808]
[1736814579058,0.52996,94704.0,94700.0,0.06465808]
[1736814581168,0.53196,94704.0,94700.0,0.06465808]
[1736814581770,0.52896,94704.0,94700.0,0.06465808]
[1736814581969,0.52296,94704.0,94700.0,0.06465808]
[1736814582170,0.52896,94704.0,94700.0,0.06465808]
[1736814582870,0.52996,94704.0,94700.0,0.06465808]
[1736814583660,0.53196,94704.0,94700.0,0.06465808]
[1736814584873,0.52896,94704.0,94700.0,0.06465808]
[1736814585468,0.53096,94704.0,94700.0,0.06465808]
[1736814585673,0.53196,94704.0,94700.0,0.06465808]
[1736814587171,0.11368806,94703.0,94700.0,0.06465808]
[1736814588578,0.12168806,94703.0,94700.0,0.06465808]
[1736814588772,0.0803,94702.0,94700.0,0.06465808]
[1736814590079,0.0883,94702.0,94700.0,0.06465808]
[1736814591086,0.0913,94702.0,94700.0,0.06465808]
[1736814592575,0.0913,94702.0,94700.0,0.03490116]
[1736814592778,0.0913,94702.0,94679.0,0.00158411]
[1736814592779,0.1516,94701.0,94679.0,0.00158411]
[1736814592978,0.3608,94683.0,94679.0,0.00158411]
[1736814594480,0.5124,94701.0,94679.0,0.00258411]
[1736814594677,0.5124,94701.0,94679.0,0.00358411]
[1736814594678,0.07039831,94690.0,94679.0,0.00358411]
[1736814594975,0.07039831,94690.0,94680.0,0.052827]
[1736814595182,0.07039831,94690.0,94686.0,0.3608]
[1736814595374,0.10721658,94696.0,94687.0,0.0806]
[1736814595677,0.10721658,94696.0,94688.0,0.0799]
[1736814597085,0.11121658,94696.0,94688.0,0.0799]
[1736814597779,0.001,94695.0,94679.0,0.00158411]
[1736814597979,0.10721658,94689.0,94679.0,0.00158411]